[Event "*** Titled Tuesday Blitz"]
[Site "Chess.com"]
[Date "2020.04.21"]
[Round "3"]
[White "BabyFacedAssasin"]
[Black "ALeks_Ivlev"]
[Result "0-1"]
[WhiteElo "2267"]
[BlackElo "2522"]
[TimeControl "180+1"]
[EndTime "10:29:26 PDT"]
[Termination "ALeks_Ivlev won by resignation"]

1. e4 {[%clk 0:03:00.9]} 1... c5 {[%clk 0:03:00]} 2. Nf3 {[%clk 0:02:59.6]} 2...
d6 {[%clk 0:03:00.4]} 3. d4 {[%clk 0:02:59.1]} 3... cxd4 {[%clk 0:03:00.8]} 4.
Nxd4 {[%clk 0:03:00]} 4... Nf6 {[%clk 0:03:01.1]} 5. Nc3 {[%clk 0:02:58.1]} 5...
g6 {[%clk 0:03:01.7]} 6. Be3 {[%clk 0:02:55.1]} 6... Bg7 {[%clk 0:03:02.1]} 7.
f3 {[%clk 0:02:55.1]} 7... a6 {[%clk 0:03:02]} 8. Qd2 {[%clk 0:02:54.1]} 8... h5
{[%clk 0:03:01.5]} 9. O-O-O {[%clk 0:02:52.9]} 9... b5 {[%clk 0:03:02]} 10. Kb1
{[%clk 0:02:50.8]} 10... Bb7 {[%clk 0:03:02.3]} 11. a3 {[%clk 0:02:37.9]} 11...
Nbd7 {[%clk 0:02:59.7]} 12. h3 {[%clk 0:02:32.3]} 12... Rc8 {[%clk 0:02:59.6]}
13. Be2 {[%clk 0:02:28.1]} 13... Ne5 {[%clk 0:02:59.4]} 14. g4 {[%clk
0:02:24.9]} 14... Nc4 {[%clk 0:02:54.3]} 15. Bxc4 {[%clk 0:02:24.8]} 15... Rxc4
{[%clk 0:02:54.6]} 16. Qd3 {[%clk 0:02:00.6]} 16... Nd7 {[%clk 0:02:52]} 17. b3
{[%clk 0:01:53]} 17... Ne5 {[%clk 0:02:43.8]} 18. Qd2 {[%clk 0:01:47.8]} 18...
Rc8 {[%clk 0:02:28.1]} 19. f4 {[%clk 0:01:41.9]} 19... Nf3 {[%clk 0:02:09.2]}
20. Nxf3 {[%clk 0:01:38.6]} 20... Bxc3 {[%clk 0:02:09.6]} 21. Qd3 {[%clk
0:01:35.9]} 21... Qa5 {[%clk 0:01:45.2]} 22. Bd4 {[%clk 0:01:29]} 22... b4
{[%clk 0:01:45.3]} 23. a4 {[%clk 0:01:20.6]} 23... Bxd4 {[%clk 0:00:48.5]} 24.
Qxd4 {[%clk 0:01:18.4]} 24... Rg8 {[%clk 0:00:48.7]} 25. f5 {[%clk 0:01:03.4]}
25... Qc5 {[%clk 0:00:46.9]} 26. fxg6 {[%clk 0:00:38.9]} 26... Rxg6 {[%clk
0:00:40]} 27. Qxc5 {[%clk 0:00:24.3]} 27... Rxc5 {[%clk 0:00:39.3]} 28. Nh4
{[%clk 0:00:17.5]} 28... Rg8 {[%clk 0:00:37.2]} 29. Rhe1 {[%clk 0:00:14.7]}
29... hxg4 {[%clk 0:00:37.1]} 30. hxg4 {[%clk 0:00:15.3]} 30... Rxg4 {[%clk
0:00:37.2]} 31. Nf5 {[%clk 0:00:15.1]} 31... Bxe4 {[%clk 0:00:37]} 32. Nd4
{[%clk 0:00:14]} 32... e5 {[%clk 0:00:33.3]} 33. Kb2 {[%clk 0:00:04.4]} 33...
exd4 {[%clk 0:00:33.2]} 34. Rxd4 {[%clk 0:00:05]} 34... d5 {[%clk 0:00:32.4]}
35. Rxb4 {[%clk 0:00:04.5]} 35... Rxc2+ {[%clk 0:00:32.5]} 36. Ka3 {[%clk
0:00:05.1]} 36... Rgg2 {[%clk 0:00:32.6]} 37. Rb8+ {[%clk 0:00:05.2]} 37... Kd7
{[%clk 0:00:32.7]} 38. Kb4 {[%clk 0:00:05.9]} 38... Rc7 {[%clk 0:00:27.9]} 39.
Rb6 {[%clk 0:00:05.9]} 39... Rg6 {[%clk 0:00:26.9]} 40. Rxg6 {[%clk 0:00:05.5]}
40... fxg6 {[%clk 0:00:26.7]} 41. Ka5 {[%clk 0:00:06.4]} 41... Rc6 {[%clk
0:00:25.6]} 42. b4 {[%clk 0:00:06.7]} 42... Ke6 {[%clk 0:00:19.5]} 43. b5 {[%clk
0:00:06.6]} 43... axb5 {[%clk 0:00:20]} 44. axb5 {[%clk 0:00:07.5]} 44... Rc8
{[%clk 0:00:20.7]} 45. Kb6 {[%clk 0:00:07.3]} 45... Ke5 {[%clk 0:00:21.3]} 46.
Kb7 {[%clk 0:00:06.8]} 46... Rc2 {[%clk 0:00:21.3]} 47. b6 {[%clk 0:00:07.4]}
47... d4+ {[%clk 0:00:21.9]} 48. Ka7 {[%clk 0:00:07.4]} 48... Ra2+ {[%clk
0:00:21.7]} 49. Kb8 {[%clk 0:00:07.8]} 49... d3 {[%clk 0:00:21.9]} 50. Kc7
{[%clk 0:00:06.8]} 50... Rc2+ {[%clk 0:00:22]} 51. Kd7 {[%clk 0:00:06.4]} 51...
d2 {[%clk 0:00:21.8]} 52. Rd1 {[%clk 0:00:06.8]} 52... Rb2 {[%clk 0:00:21.5]}
53. Kc7 {[%clk 0:00:06.4]} 53... Kf4 {[%clk 0:00:20.6]} 54. Rf1+ {[%clk
0:00:05.2]} 54... Ke3 {[%clk 0:00:20.6]} 55. Rg1 {[%clk 0:00:05.7]} 55... Bf3
{[%clk 0:00:20.1]} 56. Rxg6 {[%clk 0:00:04.2]} 56... d1=Q {[%clk 0:00:20.1]} 57.
Re6+ {[%clk 0:00:04.8]} 57... Be4 {[%clk 0:00:20.3]} 0-1

[Event "*** Titled Tuesday Blitz"]
[Site "Chess.com"]
[Date "2020.04.21"]
[Round "3"]
[White "starworld123"]
[Black "InitiatingASC"]
[Result "1/2-1/2"]
[WhiteElo "2634"]
[BlackElo "2426"]
[TimeControl "180+1"]
[EndTime "10:29:27 PDT"]
[Termination "Game drawn by agreement"]

1. e4 {[%clk 0:03:00.9]} 1... c5 {[%clk 0:02:59]} 2. Nf3 {[%clk 0:02:55.8]} 2...
Nc6 {[%clk 0:02:58.9]} 3. d4 {[%clk 0:02:52.2]} 3... cxd4 {[%clk 0:02:59.8]} 4.
Nxd4 {[%clk 0:02:53.1]} 4... Nf6 {[%clk 0:03:00.3]} 5. Nc3 {[%clk 0:02:50.6]}
5... e5 {[%clk 0:03:00.7]} 6. Ndb5 {[%clk 0:02:47.3]} 6... h6 {[%clk 0:03:01]}
7. Nd6+ {[%clk 0:02:45.7]} 7... Bxd6 {[%clk 0:03:01.2]} 8. Qxd6 {[%clk
0:02:46.6]} 8... Qe7 {[%clk 0:03:02.1]} 9. Qxe7+ {[%clk 0:02:46.4]} 9... Kxe7
{[%clk 0:03:03]} 10. Bc4 {[%clk 0:02:40.1]} 10... d6 {[%clk 0:03:02.9]} 11. Be3
{[%clk 0:02:36.5]} 11... Be6 {[%clk 0:03:02.6]} 12. Bb3 {[%clk 0:02:34.8]} 12...
Rhd8 {[%clk 0:03:01.8]} 13. f3 {[%clk 0:02:32.4]} 13... Bxb3 {[%clk 0:02:52.8]}
14. axb3 {[%clk 0:02:31.8]} 14... d5 {[%clk 0:02:53.2]} 15. exd5 {[%clk
0:02:29.3]} 15... Nxd5 {[%clk 0:02:52.7]} 16. Bc5+ {[%clk 0:02:28.1]} 16... Ke6
{[%clk 0:02:48]} 17. O-O {[%clk 0:02:24.6]} 17... b6 {[%clk 0:02:42.6]} 18. Nxd5
{[%clk 0:02:22.1]} 18... Kxd5 {[%clk 0:02:34.3]} 19. Be3 {[%clk 0:02:20.1]}
19... Ke6 {[%clk 0:02:29]} 20. Ra4 {[%clk 0:02:12.2]} 20... Rac8 {[%clk
0:02:23.9]} 21. b4 {[%clk 0:02:00.6]} 21... Nd4 {[%clk 0:02:11.8]} 22. c3 {[%clk
0:01:58.8]} 22... Nf5 {[%clk 0:02:01.8]} 23. Kf2 {[%clk 0:01:57.7]} 23... Nxe3
{[%clk 0:01:53.5]} 24. Kxe3 {[%clk 0:01:58.6]} 24... Rd7 {[%clk 0:01:53.4]} 25.
Rfa1 {[%clk 0:01:56.9]} 25... Rcd8 {[%clk 0:01:49.9]} 26. Kf2 {[%clk 0:01:43.9]}
26... Rd2+ {[%clk 0:01:47.5]} 27. Kg3 {[%clk 0:01:43.4]} 27... Rxb2 {[%clk
0:01:44.9]} 28. Rxa7 {[%clk 0:01:42.4]} 28... Rdd2 {[%clk 0:01:44.3]} 29. Rg1
{[%clk 0:01:43]} 29... Rdc2 {[%clk 0:01:28.4]} 30. Rb7 {[%clk 0:01:42.8]} 30...
Rxc3 {[%clk 0:01:25.7]} 31. Rxb6+ {[%clk 0:01:43]} 31... Kf5 {[%clk 0:01:26.2]}
32. Rb7 {[%clk 0:01:40.9]} 32... Kg6 {[%clk 0:01:25.5]} 33. Rd1 {[%clk
0:01:08.6]} 33... Rcc2 {[%clk 0:01:18.5]} 34. Rg1 {[%clk 0:01:09]} 34... Rb3
{[%clk 0:01:08.3]} 35. h4 {[%clk 0:00:53.3]} 35... h5 {[%clk 0:01:03.7]} 36. Rd1
{[%clk 0:00:46.2]} 36... Rbb2 {[%clk 0:01:02.5]} 37. Rg1 {[%clk 0:00:46.5]}
37... f6 {[%clk 0:01:01.6]} 38. Kh3 {[%clk 0:00:42.7]} 38... Rb3 {[%clk
0:01:00.2]} 39. Rd1 {[%clk 0:00:42]} 39... e4 {[%clk 0:00:56.5]} 40. Kg3 {[%clk
0:00:28]} 40... Rbb2 {[%clk 0:00:45.5]} 41. Kf4 {[%clk 0:00:28.1]} 41... exf3
{[%clk 0:00:39.9]} 42. gxf3 {[%clk 0:00:29]} 42... Rc4+ {[%clk 0:00:40]} 43. Ke3
{[%clk 0:00:22.6]} 43... Rb3+ {[%clk 0:00:36.8]} 44. Kf2 {[%clk 0:00:20.5]}
44... Rc2+ {[%clk 0:00:33]} 45. Kg3 {[%clk 0:00:20.1]} 45... Rcc3 {[%clk
0:00:32.3]} 46. Rf1 {[%clk 0:00:17.8]} 46... Rc4 {[%clk 0:00:32.2]} 47. Rg1
{[%clk 0:00:17.6]} 47... Rbxb4 {[%clk 0:00:24]} 48. Kf2+ {[%clk 0:00:16.9]}
48... Kf5 {[%clk 0:00:23.7]} 49. Rxb4 {[%clk 0:00:16.3]} 49... Rxb4 {[%clk
0:00:23.3]} 50. Rxg7 {[%clk 0:00:17.2]} 50... Rxh4 {[%clk 0:00:23.7]} 51. Ra7
{[%clk 0:00:17.3]} 51... Rb4 {[%clk 0:00:20.1]} 52. Ra5+ {[%clk 0:00:16.8]}
52... Kg6 {[%clk 0:00:20.1]} 53. Kg3 {[%clk 0:00:17.7]} 53... Rb3 {[%clk
0:00:20.1]} 54. Rc5 {[%clk 0:00:17.1]} 54... Rd3 {[%clk 0:00:20]} 55. Rb5 {[%clk
0:00:17]} 55... Rc3 {[%clk 0:00:20]} 56. Ra5 {[%clk 0:00:17.3]} 56... Rb3 {[%clk
0:00:19.8]} 1/2-1/2

[Event "*** Titled Tuesday Blitz"]
[Site "Chess.com"]
[Date "2020.04.21"]
[Round "3"]
[White "DucksParadise"]
[Black "arminmusovic"]
[Result "0-1"]
[WhiteElo "2071"]
[BlackElo "2491"]
[TimeControl "180+1"]
[EndTime "10:29:28 PDT"]
[Termination "arminmusovic won by resignation"]

1. e4 {[%clk 0:03:00.9]} 1... c6 {[%clk 0:03:00.4]} 2. d4 {[%clk 0:02:59.5]}
2... d5 {[%clk 0:03:01.3]} 3. e5 {[%clk 0:02:57.8]} 3... c5 {[%clk 0:03:01.5]}
4. dxc5 {[%clk 0:02:56.8]} 4... Nc6 {[%clk 0:03:01.9]} 5. Nf3 {[%clk 0:02:52.6]}
5... Bg4 {[%clk 0:03:01.6]} 6. c3 {[%clk 0:02:52]} 6... e6 {[%clk 0:03:02]} 7.
Be3 {[%clk 0:02:33.9]} 7... Nge7 {[%clk 0:02:54.4]} 8. Bb5 {[%clk 0:02:22]} 8...
a6 {[%clk 0:02:53.6]} 9. Bxc6+ {[%clk 0:01:53.7]} 9... Nxc6 {[%clk 0:02:54.5]}
10. Nbd2 {[%clk 0:01:54]} 10... Be7 {[%clk 0:02:50.6]} 11. h3 {[%clk 0:01:50.5]}
11... Bh5 {[%clk 0:02:50.6]} 12. Bd4 {[%clk 0:01:20.2]} 12... Nxd4 {[%clk
0:02:45.7]} 13. cxd4 {[%clk 0:01:21.1]} 13... O-O {[%clk 0:02:45.8]} 14. O-O
{[%clk 0:01:19.9]} 14... f5 {[%clk 0:02:45.1]} 15. b4 {[%clk 0:00:59.9]} 15...
g5 {[%clk 0:02:43.1]} 16. a4 {[%clk 0:00:49.9]} 16... Kh8 {[%clk 0:02:43.3]} 17.
b5 {[%clk 0:00:49]} 17... axb5 {[%clk 0:02:32.4]} 18. axb5 {[%clk 0:00:49.9]}
18... Rxa1 {[%clk 0:02:32.6]} 19. Qxa1 {[%clk 0:00:50.8]} 19... g4 {[%clk
0:02:33.2]} 20. Nh2 {[%clk 0:00:17.6]} 20... Bg5 {[%clk 0:02:30.7]} 21. Qc3
{[%clk 0:00:15]} 21... Rg8 {[%clk 0:02:22.3]} 22. f4 {[%clk 0:00:13.1]} 22...
gxf3 {[%clk 0:01:49.4]} 23. Nhxf3 {[%clk 0:00:12.7]} 23... Bf4 {[%clk
0:01:49.2]} 24. Kh1 {[%clk 0:00:10.5]} 24... Qe7 {[%clk 0:01:38.6]} 25. c6
{[%clk 0:00:09.9]} 25... Qg7 {[%clk 0:01:38.8]} 26. Rg1 {[%clk 0:00:09.6]} 26...
bxc6 {[%clk 0:01:38.2]} 27. bxc6 {[%clk 0:00:09.2]} 27... Qg3 {[%clk 0:01:22.8]}
28. Nf1 {[%clk 0:00:08.4]} 28... Qf2 {[%clk 0:01:13.3]} 29. c7 {[%clk
0:00:07.6]} 29... Bxf3 {[%clk 0:01:10.7]} 30. Qxf3 {[%clk 0:00:04.2]} 30... Qxf3
{[%clk 0:00:54.2]} 31. gxf3 {[%clk 0:00:05.1]} 31... Rc8 {[%clk 0:00:54.7]} 32.
Nh2 {[%clk 0:00:03.2]} 32... Rxc7 {[%clk 0:00:53.9]} 33. Rd1 {[%clk 0:00:03.2]}
33... Rc2 {[%clk 0:00:53.1]} 34. Nf1 {[%clk 0:00:03.5]} 34... Rf2 {[%clk
0:00:53.2]} 35. Kg1 {[%clk 0:00:04]} 35... Rxf3 {[%clk 0:00:53.5]} 36. Kg2
{[%clk 0:00:04.6]} 36... Rc3 {[%clk 0:00:51]} 37. Rb1 {[%clk 0:00:04.3]} 37...
Kg7 {[%clk 0:00:50.6]} 38. Rb7+ {[%clk 0:00:04.3]} 38... Kg6 {[%clk 0:00:49.7]}
39. Re7 {[%clk 0:00:04.6]} 39... Rc6 {[%clk 0:00:37.7]} 40. Rd7 {[%clk
0:00:03.9]} 40... h5 {[%clk 0:00:24.2]} 41. Kf3 {[%clk 0:00:04.5]} 41... Bg5
{[%clk 0:00:22.7]} 42. Ng3 {[%clk 0:00:04.3]} 42... Rc3+ {[%clk 0:00:22.5]} 43.
Kg2 {[%clk 0:00:04.5]} 43... f4 {[%clk 0:00:22.5]} 44. Nf1 {[%clk 0:00:04.2]}
44... Kf5 {[%clk 0:00:21.8]} 45. Rh7 {[%clk 0:00:02.2]} 45... Ke4 {[%clk
0:00:20.4]} 46. Kf2 {[%clk 0:00:01.5]} 46... Rc2+ {[%clk 0:00:20.4]} 47. Ke1
{[%clk 0:00:01.6]} 47... Rc1+ {[%clk 0:00:19]} 48. Ke2 {[%clk 0:00:01.4]} 48...
f3+ {[%clk 0:00:19.2]} 49. Kf2 {[%clk 0:00:02.3]} 49... Bh4+ {[%clk 0:00:19.6]}
50. Ng3+ {[%clk 0:00:02.8]} 50... Bxg3+ {[%clk 0:00:20.2]} 51. Kxg3 {[%clk
0:00:03.7]} 51... Rg1+ {[%clk 0:00:20.8]} 52. Kf2 {[%clk 0:00:03.5]} 52... Rg2+
{[%clk 0:00:21.1]} 53. Kf1 {[%clk 0:00:04.2]} 53... Kxd4 {[%clk 0:00:20.9]} 54.
Rxh5 {[%clk 0:00:04.3]} 54... Ke3 {[%clk 0:00:21.1]} 55. Rh6 {[%clk 0:00:03.4]}
55... Ra2 {[%clk 0:00:20.7]} 0-1

[Event "*** Titled Tuesday Blitz"]
[Site "Chess.com"]
[Date "2020.04.21"]
[Round "3"]
[White "Leonid_Starozhilov"]
[Black "Jospem"]
[Result "0-1"]
[WhiteElo "2629"]
[BlackElo "2831"]
[TimeControl "180+1"]
[EndTime "10:29:30 PDT"]
[Termination "Jospem won by checkmate"]

1. c4 {[%clk 0:03:00.9]} 1... c5 {[%clk 0:02:55.7]} 2. Nc3 {[%clk 0:03:00.9]}
2... Nc6 {[%clk 0:02:56.2]} 3. Nf3 {[%clk 0:03:01.3]} 3... g6 {[%clk 0:02:56.8]}
4. g3 {[%clk 0:03:01.5]} 4... Bg7 {[%clk 0:02:57.2]} 5. Bg2 {[%clk 0:03:02.2]}
5... d6 {[%clk 0:02:57.8]} 6. O-O {[%clk 0:03:02.7]} 6... e6 {[%clk 0:02:58.5]}
7. a3 {[%clk 0:03:02.1]} 7... Nge7 {[%clk 0:02:58.8]} 8. d3 {[%clk 0:03:02.6]}
8... O-O {[%clk 0:02:59.2]} 9. Bd2 {[%clk 0:03:00]} 9... b6 {[%clk 0:02:59.5]}
10. Qc1 {[%clk 0:02:55.5]} 10... Nf5 {[%clk 0:02:54.6]} 11. Nh4 {[%clk
0:02:29.7]} 11... Nfd4 {[%clk 0:02:39.2]} 12. Qd1 {[%clk 0:02:12.3]} 12... Bb7
{[%clk 0:02:39.3]} 13. e3 {[%clk 0:02:08.8]} 13... Nf5 {[%clk 0:02:39.1]} 14.
Nxf5 {[%clk 0:02:09]} 14... gxf5 {[%clk 0:02:40]} 15. Rb1 {[%clk 0:01:58.7]}
15... Qd7 {[%clk 0:02:37.7]} 16. Ne2 {[%clk 0:01:55.4]} 16... Ne5 {[%clk
0:02:37.5]} 17. Nf4 {[%clk 0:01:53.1]} 17... Bxg2 {[%clk 0:02:34.5]} 18. Kxg2
{[%clk 0:01:54]} 18... Ng6 {[%clk 0:02:34.8]} 19. Nh5 {[%clk 0:01:46.3]} 19...
d5 {[%clk 0:02:35.2]} 20. Bc3 {[%clk 0:01:14.3]} 20... f6 {[%clk 0:02:29.9]} 21.
cxd5 {[%clk 0:00:54.9]} 21... Qxd5+ {[%clk 0:02:29.2]} 22. Qf3 {[%clk
0:00:55.6]} 22... Rad8 {[%clk 0:02:28.2]} 23. Rbd1 {[%clk 0:00:48.9]} 23...
Qxf3+ {[%clk 0:02:23]} 24. Kxf3 {[%clk 0:00:49]} 24... e5 {[%clk 0:02:23.9]} 25.
b4 {[%clk 0:00:43.5]} 25... cxb4 {[%clk 0:02:20.4]} 26. axb4 {[%clk 0:00:40.1]}
26... Rf7 {[%clk 0:02:20.7]} 27. d4 {[%clk 0:00:35.6]} 27... Rc8 {[%clk
0:02:15.3]} 28. Ba1 {[%clk 0:00:30.3]} 28... Bf8 {[%clk 0:02:09.3]} 29. b5
{[%clk 0:00:20.4]} 29... e4+ {[%clk 0:01:21.1]} 30. Kg2 {[%clk 0:00:20.3]} 30...
Rd8 {[%clk 0:01:19.8]} 31. Rc1 {[%clk 0:00:20.2]} 31... Ne7 {[%clk 0:01:17.1]}
32. Nf4 {[%clk 0:00:14.5]} 32... Nd5 {[%clk 0:01:13.8]} 33. Rc6 {[%clk
0:00:10.6]} 33... Nb4 {[%clk 0:01:06.6]} 34. Rc4 {[%clk 0:00:06.9]} 34... Bd6
{[%clk 0:01:03]} 35. Nh5 {[%clk 0:00:05.2]} 35... Nd5 {[%clk 0:01:01.5]} 36. Bb2
{[%clk 0:00:05.1]} 36... Rfd7 {[%clk 0:01:00.6]} 37. Rfc1 {[%clk 0:00:05.1]}
37... Kf7 {[%clk 0:01:00.9]} 38. h3 {[%clk 0:00:05]} 38... Kg6 {[%clk
0:01:00.9]} 39. Nf4+ {[%clk 0:00:05.3]} 39... Bxf4 {[%clk 0:01:00]} 40. gxf4
{[%clk 0:00:06.2]} 40... Kf7 {[%clk 0:00:57.1]} 41. Ba3 {[%clk 0:00:06.6]} 41...
Rg8+ {[%clk 0:00:56.4]} 42. Kf1 {[%clk 0:00:06.2]} 42... Ra8 {[%clk 0:00:53.5]}
43. Rc6 {[%clk 0:00:05.7]} 43... a6 {[%clk 0:00:53.1]} 44. bxa6 {[%clk
0:00:05.5]} 44... Rxa6 {[%clk 0:00:54]} 45. Bd6 {[%clk 0:00:03.5]} 45... Ra2
{[%clk 0:00:48.8]} 46. Bb8 {[%clk 0:00:03]} 46... Ra8 {[%clk 0:00:48]} 47. Bd6
{[%clk 0:00:02.9]} 47... Ra2 {[%clk 0:00:37.9]} 48. Bc7 {[%clk 0:00:03.4]} 48...
b5 {[%clk 0:00:35.7]} 49. Bd6 {[%clk 0:00:03.8]} 49... Rb2 {[%clk 0:00:34.6]}
50. Bc5 {[%clk 0:00:04]} 50... b4 {[%clk 0:00:34.2]} 51. Ra1 {[%clk 0:00:04.3]}
51... b3 {[%clk 0:00:32.5]} 52. Ra5 {[%clk 0:00:04.6]} 52... Rb1+ {[%clk
0:00:32.4]} 53. Kg2 {[%clk 0:00:04.6]} 53... Rb7 {[%clk 0:00:28.1]} 54. Rc8
{[%clk 0:00:05]} 54... b2 {[%clk 0:00:25.1]} 55. Raa8 {[%clk 0:00:05.2]} 55...
Rg1+ {[%clk 0:00:23.7]} 56. Kxg1 {[%clk 0:00:05.8]} 56... b1=Q+ {[%clk
0:00:23.7]} 57. Kh2 {[%clk 0:00:06.6]} 57... Qf1 {[%clk 0:00:20.9]} 58. Rf8+
{[%clk 0:00:06.6]} 58... Kg6 {[%clk 0:00:21.2]} 59. Kg3 {[%clk 0:00:05.4]} 59...
Qg1+ {[%clk 0:00:21]} 60. Kh4 {[%clk 0:00:05.6]} 60... Qxf2# {[%clk 0:00:21.4]}
0-1

[Event "*** Titled Tuesday Blitz"]
[Site "Chess.com"]
[Date "2020.04.21"]
[Round "3"]
[White "kuba2006"]
[Black "KetiTsatsalashvili"]
[Result "0-1"]
[WhiteElo "2433"]
[BlackElo "2234"]
[TimeControl "180+1"]
[EndTime "10:29:31 PDT"]
[Termination "KetiTsatsalashvili won on time"]

1. e4 {[%clk 0:03:00.9]} 1... c5 {[%clk 0:02:59.6]} 2. Nf3 {[%clk 0:03:00.3]}
2... d6 {[%clk 0:02:59.7]} 3. d4 {[%clk 0:03:00.5]} 3... cxd4 {[%clk 0:03:00.6]}
4. Qxd4 {[%clk 0:03:01.1]} 4... Nc6 {[%clk 0:02:59.1]} 5. Bb5 {[%clk 0:03:00.4]}
5... e5 {[%clk 0:02:59.3]} 6. Qd3 {[%clk 0:02:58.1]} 6... Be6 {[%clk 0:02:54.4]}
7. c4 {[%clk 0:02:53]} 7... h6 {[%clk 0:02:48.8]} 8. Nc3 {[%clk 0:02:51.5]} 8...
Nf6 {[%clk 0:02:48.1]} 9. O-O {[%clk 0:02:41.9]} 9... Be7 {[%clk 0:02:47.5]} 10.
Bxc6+ {[%clk 0:02:30.3]} 10... bxc6 {[%clk 0:02:46.1]} 11. b4 {[%clk 0:02:30.9]}
11... O-O {[%clk 0:02:35.9]} 12. Be3 {[%clk 0:02:28.8]} 12... Qc7 {[%clk
0:02:18.5]} 13. Rfd1 {[%clk 0:02:25.7]} 13... Rfd8 {[%clk 0:02:17.2]} 14. Rac1
{[%clk 0:02:23]} 14... Rab8 {[%clk 0:02:12.3]} 15. b5 {[%clk 0:02:16.2]} 15...
c5 {[%clk 0:02:09.9]} 16. a4 {[%clk 0:02:02.9]} 16... Bg4 {[%clk 0:02:08]} 17.
Kh1 {[%clk 0:01:51]} 17... Bf8 {[%clk 0:02:04.1]} 18. Rg1 {[%clk 0:01:46.4]}
18... Qd7 {[%clk 0:01:59.3]} 19. Nd2 {[%clk 0:01:42.9]} 19... Bh5 {[%clk
0:01:56.3]} 20. f3 {[%clk 0:01:36.2]} 20... g5 {[%clk 0:01:49.1]} 21. g4 {[%clk
0:01:28.5]} 21... Bg6 {[%clk 0:01:48.4]} 22. a5 {[%clk 0:01:23.4]} 22... Qc7
{[%clk 0:01:45.5]} 23. Ra1 {[%clk 0:01:21.8]} 23... Bg7 {[%clk 0:01:43]} 24. Nd5
{[%clk 0:01:18.5]} 24... Nxd5 {[%clk 0:01:42.3]} 25. Qxd5 {[%clk 0:01:19.4]}
25... Kh7 {[%clk 0:01:40.5]} 26. Rgb1 {[%clk 0:01:11.9]} 26... f6 {[%clk
0:01:39.6]} 27. Nf1 {[%clk 0:01:04.6]} 27... Bf7 {[%clk 0:01:38.8]} 28. Qd3
{[%clk 0:01:04.1]} 28... Be6 {[%clk 0:01:37.4]} 29. Ng3 {[%clk 0:01:01.5]} 29...
Qf7 {[%clk 0:01:36.7]} 30. Ra4 {[%clk 0:01:00.5]} 30... Bf8 {[%clk 0:01:31.6]}
31. b6 {[%clk 0:00:54.2]} 31... axb6 {[%clk 0:01:29.8]} 32. axb6 {[%clk
0:00:55.1]} 32... Rb7 {[%clk 0:01:29.2]} 33. Bxc5 {[%clk 0:00:49.9]} 33... Rc8
{[%clk 0:01:19.6]} 34. Bxd6 {[%clk 0:00:24.5]} 34... Bxc4 {[%clk 0:01:11.7]} 35.
Qa3 {[%clk 0:00:23.1]} 35... Bxd6 {[%clk 0:01:06.5]} 36. Qxd6 {[%clk 0:00:24]}
36... Bb3 {[%clk 0:00:48.7]} 37. Rb4 {[%clk 0:00:16.7]} 37... Ba2 {[%clk
0:00:46.1]} 38. Ra1 {[%clk 0:00:15.3]} 38... Be6 {[%clk 0:00:36.6]} 39. Ra7
{[%clk 0:00:08.9]} 39... Rxa7 {[%clk 0:00:15.1]} 40. bxa7 {[%clk 0:00:09.8]}
40... Ra8 {[%clk 0:00:14.3]} 41. Rb6 {[%clk 0:00:05.7]} 41... Bc4 {[%clk
0:00:10.7]} 42. Rb8 {[%clk 0:00:04.5]} 42... Rxa7 {[%clk 0:00:09.7]} 43. Nf5
{[%clk 0:00:03.3]} 43... Ra1+ {[%clk 0:00:08.9]} 44. Kg2 {[%clk 0:00:03.4]}
44... Bf1+ {[%clk 0:00:08.1]} 45. Kg3 {[%clk 0:00:03]} 45... Ra2 {[%clk
0:00:08]} 46. Ne3 {[%clk 0:00:01.4]} 46... Re2 {[%clk 0:00:05.1]} 47. Qd8 {[%clk
0:00:01.5]} 47... Qg7 {[%clk 0:00:04]} 0-1